[Event "The Kvibergspelen 2023"]
[Site "Kviberg Park Hotel & Conference, Krutvagen 2, Gothenburg, Sweden"]
[Date "2023.09.17"]
[Round "7.15"]
[White "Ljung, Harald"]
[Black "Wahlund, Max"]
[Result "1/2-1/2"]
[TimeControl "15 minutes + 5 seconds per move from move one (Round 1 - 4) / 90 minutes + 30 seconds per move from move one (Round 5 - 8)"]
[BlackTitle "CM"]
[WhiteFideId "1738178"]
[BlackFideId "1741861"]
[WhiteElo "2164"]
[BlackElo "2065"]

1. d4 {[%clk 01:30:58]} {[%emt 00:00:01]} Nf6 {[%clk 01:30:25]} {[%emt
00:00:35]} 2. Nf3 {[%clk 01:31:09]} {[%emt 00:00:18]} g6 {[%clk 01:30:48]}
{[%emt 00:00:07]} 3. g3 {[%clk 01:31:25]} {[%emt 00:00:15]} Bg7 {[%clk
01:31:16]} {[%emt 00:00:02]} 4. Bg2 {[%clk 01:31:50]} {[%emt 00:00:05]} O-O
{[%clk 01:31:40]} {[%emt 00:00:06]} 5. c4 {[%clk 01:31:55]} {[%emt 00:00:25]}
d6 {[%clk 01:31:51]} {[%emt 00:00:18]} 6. O-O {[%clk 01:32:14]} {[%emt
00:00:11]} c5 {[%clk 01:32:20]} {[%emt 00:00:02]} 7. d5 {[%clk 01:29:32]}
{[%emt 00:03:12]} b5 {[%clk 01:22:08]} {[%emt 00:10:42]} 8. cxb5 {[%clk
01:28:52]} {[%emt 00:01:10]} a6 {[%clk 01:22:36]} {[%emt 00:00:02]} 9. bxa6
{[%clk 01:28:51]} {[%emt 00:00:31]} Nxa6 {[%clk 01:23:04]} {[%emt 00:00:03]} 10.
Nc3 {[%clk 01:29:14]} {[%emt 00:00:07]} Qb6 {[%clk 01:20:49]} {[%emt 00:02:44]}
11. e4 {[%clk 01:22:51]} {[%emt 00:06:53]} Nc7 {[%clk 01:14:37]} {[%emt
00:06:41]} 12. a4 {[%clk 01:14:57]} {[%emt 00:08:25]} Nd7 {[%clk 01:02:20]}
{[%emt 00:12:47]} 13. Qc2 {[%clk 01:09:20]} {[%emt 00:06:06]} Ba6 {[%clk
00:58:56]} {[%emt 00:03:55]} 14. Re1 {[%clk 01:08:35]} {[%emt 00:01:14]} Rfb8
{[%clk 00:59:06]} {[%emt 00:00:20]} 15. Bh3 {[%clk 01:03:18]} {[%emt 00:05:48]}
Ne5 {[%clk 00:58:22]} {[%emt 00:01:14]} 16. Nxe5 {[%clk 01:03:12]} {[%emt
00:00:36]} Bxe5 {[%clk 00:58:49]} {[%emt 00:00:02]} 17. Ra3 {[%clk 00:58:23]}
{[%emt 00:05:21]} Bc4 {[%clk 00:58:20]} {[%emt 00:00:58]} 18. Bd7 {[%clk
00:41:24]} {[%emt 00:17:29]} Ra7 {[%clk 00:56:14]} {[%emt 00:02:36]} 19. Bc6
{[%clk 00:38:32]} {[%emt 00:03:21]} Ne6 {[%clk 00:47:53]} {[%emt 00:08:52]} 20.
Be3 {[%clk 00:22:37]} {[%emt 00:16:25]} Nd4 {[%clk 00:35:11]} {[%emt 00:13:12]}
21. Bxd4 {[%clk 00:22:47]} {[%emt 00:00:20]} Bxd4 {[%clk 00:35:39]} {[%emt
00:00:01]} 22. Nb5 {[%clk 00:16:06]} {[%emt 00:07:12]} Bxb5 {[%clk 00:36:07]}
{[%emt 00:00:02]} 23. Bxb5 {[%clk 00:16:11]} {[%emt 00:00:26]} Qa5 {[%clk
00:36:15]} {[%emt 00:00:21]} 24. Rb1 {[%clk 00:14:30]} {[%emt 00:02:10]} Qb4
{[%clk 00:33:07]} {[%emt 00:03:38]} 25. Rb3 {[%clk 00:14:17]} {[%emt 00:00:43]}
Qa5 {[%clk 00:33:36]} {[%emt 00:00:02]} 26. Rd3 {[%clk 00:14:35]} {[%emt
00:00:12]} Qb4 {[%clk 00:33:20]} {[%emt 00:00:46]} 27. Kg2 {[%clk 00:14:46]}
{[%emt 00:00:19]} Bf6 {[%clk 00:31:27]} {[%emt 00:02:23]} 28. Rb3 {[%clk
00:13:21]} {[%emt 00:01:54]} Qa5 {[%clk 00:31:41]} {[%emt 00:00:17]} 29. Re3
{[%clk 00:12:30]} {[%emt 00:01:21]} Qb4 {[%clk 00:31:48]} {[%emt 00:00:23]} 30.
b3 {[%clk 00:12:33]} {[%emt 00:00:27]} Bd4 {[%clk 00:31:08]} {[%emt 00:01:10]}
31. Re2 {[%clk 00:12:55]} {[%emt 00:00:07]} Bf6 {[%clk 00:31:14]} {[%emt
00:00:25]} 32. Rf1 {[%clk 00:13:00]} {[%emt 00:00:25]} Qc3 {[%clk 00:31:24]}
{[%emt 00:00:21]} 33. Qxc3 {[%clk 00:12:14]} {[%emt 00:01:15]} Bxc3 {[%clk
00:31:51]} {[%emt 00:00:03]} 34. f4 {[%clk 00:12:37]} {[%emt 00:00:07]} f6
{[%clk 00:29:29]} {[%emt 00:02:52]} 35. Rf3 {[%clk 00:13:00]} {[%emt 00:00:07]}
Bd4 {[%clk 00:29:28]} {[%emt 00:00:30]} 36. Rd3 {[%clk 00:13:24]} {[%emt
00:00:06]} Kf7 {[%clk 00:28:47]} {[%emt 00:01:11]} 37. b4 {[%clk 00:11:31]}
{[%emt 00:02:24]} e5 {[%clk 00:28:31]} {[%emt 00:00:46]} 38. bxc5 {[%clk
00:09:58]} {[%emt 00:02:02]} Bxc5 {[%clk 00:28:08]} {[%emt 00:00:53]} 39. fxe5
{[%clk 00:09:54]} {[%emt 00:00:34]} fxe5 {[%clk 00:28:33]} {[%emt 00:00:05]} 40.
Re1 {[%clk 00:09:45]} {[%emt 00:00:39]} Kg7 {[%clk 00:24:52]} {[%emt 00:04:11]}
41. Rf3 {[%clk 00:09:35]} {[%emt 00:00:41]} Rf8 {[%clk 00:25:10]} {[%emt
00:00:11]} 42. Ref1 {[%clk 00:09:32]} {[%emt 00:00:33]} Raf7 {[%clk 00:25:23]}
{[%emt 00:00:17]} 43. Rxf7+ {[%clk 00:09:22]} {[%emt 00:00:41]} Rxf7 {[%clk
00:25:52]} {[%emt 00:00:02]} 44. a5 {[%clk 00:07:04]} {[%emt 00:02:47]} Rxf1
{[%clk 00:26:17]} {[%emt 00:00:05]} 45. Kxf1 {[%clk 00:07:31]} {[%emt
00:00:03]} Kf6 {[%clk 00:26:23]} {[%emt 00:00:24]} 46. Ke2 {[%clk 00:07:22]}
{[%emt 00:00:38]} g5 {[%clk 00:25:28]} {[%emt 00:01:25]} 47. Kd3 {[%clk
00:06:32]} {[%emt 00:01:20]} Ke7 {[%clk 00:25:47]} {[%emt 00:00:12]} 48. Bc6
{[%clk 00:06:30]} {[%emt 00:00:32]} Kd8 {[%clk 00:25:54]} {[%emt 00:00:23]} 49.
Ke2 {[%clk 00:06:29]} {[%emt 00:00:31]} Ke7 {[%clk 00:26:22]} {[%emt 00:00:02]}
50. Kf3 {[%clk 00:06:53]} {[%emt 00:00:05]} Kf6 {[%clk 00:24:43]} {[%emt
00:02:09]} 51. Kg4 {[%clk 00:07:16]} {[%emt 00:00:08]} h6 {[%clk 00:24:40]}
{[%emt 00:00:33]} 52. Bd7 {[%clk 00:06:32]} {[%emt 00:01:13]} Bd4 {[%clk
00:25:00]} {[%emt 00:00:11]} 53. Be6 {[%clk 00:06:55]} {[%emt 00:00:07]} Bc5
{[%clk 00:25:21]} {[%emt 00:00:08]} 54. Kf3 {[%clk 00:07:24]} {[%emt 00:00:02]}
Bd4 {[%clk 00:25:25]} {[%emt 00:00:26]} 55. a6 {[%clk 00:06:36]} {[%emt
00:01:17]} Bc5 {[%clk 00:25:53]} {[%emt 00:00:02]} 56. Kg4 {[%clk 00:06:34]}
{[%emt 00:00:33]} Ba7 {[%clk 00:26:02]} {[%emt 00:00:21]} 57. Kh5 {[%clk
00:06:46]} {[%emt 00:00:15]} Kg7 {[%clk 00:26:29]} {[%emt 00:00:05]} 58. Bd7
{[%clk 00:07:05]} {[%emt 00:00:12]} Bg1 {[%clk 00:26:50]} {[%emt 00:00:09]} 59.
Bf5 {[%clk 00:07:18]} {[%emt 00:00:17]} Ba7 {[%clk 00:27:10]} {[%emt 00:00:09]}
60. h4 {[%clk 00:07:40]} {[%emt 00:00:08]} gxh4 {[%clk 00:27:38]} {[%emt
00:00:03]} 61. Kxh4 {[%clk 00:08:02]} {[%emt 00:00:08]} Bb6 {[%clk 00:27:31]}
{[%emt 00:00:37]} 62. Kh5 {[%clk 00:08:12]} {[%emt 00:00:19]} Ba7 {[%clk
00:27:47]} {[%emt 00:00:15]} 63. g4 {[%clk 00:08:31]} {[%emt 00:00:11]} Bb6
{[%clk 00:28:14]} {[%emt 00:00:03]} 64. Be6 {[%clk 00:08:49]} {[%emt 00:00:11]}
Be3 {[%clk 00:27:31]} {[%emt 00:01:13]} 65. Bd7 {[%clk 00:09:12]} {[%emt
00:00:08]} Kf6 {[%clk 00:26:45]} {[%emt 00:01:16]} 66. Bf5 {[%clk 00:08:52]}
{[%emt 00:00:50]} Kg7 {[%clk 00:27:05]} {[%emt 00:00:10]} 67. Bg6 {[%clk
00:09:17]} {[%emt 00:00:05]} Kf6 {[%clk 00:27:29]} {[%emt 00:00:06]} 68. a7
{[%clk 00:08:09]} {[%emt 00:01:38]} Bxa7 {[%clk 00:27:50]} {[%emt 00:00:09]} 69.
Kxh6 {[%clk 00:08:32]} {[%emt 00:00:06]} Be3 {[%clk 00:28:13]} {[%emt
00:00:08]} 70. Kh5 {[%clk 00:08:59]} {[%emt 00:00:02]} 1/2-1/2

[Event "The Kvibergspelen 2023"]
[Site "Kviberg Park Hotel & Conference, Krutvagen 2, Gothenburg, Sweden"]
[Date "2023.09.17"]
[Round "7.16"]
[White "Nordenbaek, Jan"]
[Black "Joensson, Oscar"]
[Result "1-0"]
[TimeControl "15 minutes + 5 seconds per move from move one (Round 1 - 4) / 90 minutes + 30 seconds per move from move one (Round 5 - 8)"]
[WhiteFideId "1401475"]
[BlackFideId "1729977"]
[WhiteElo "2163"]
[BlackElo "2060"]

1. e4 {[%clk 01:30:12]} {[%emt 00:00:48]} c6 {[%clk 01:30:55]} {[%emt
00:00:05]} 2. Nf3 {[%clk 01:28:52]} {[%emt 00:01:49]} d5 {[%clk 01:31:19]}
{[%emt 00:00:07]} 3. Nc3 {[%clk 01:29:20]} {[%emt 00:00:02]} Bg4 {[%clk
01:31:43]} {[%emt 00:00:05]} 4. h3 {[%clk 01:29:46]} {[%emt 00:00:05]} Bxf3
{[%clk 01:30:08]} {[%emt 00:02:05]} 5. Qxf3 {[%clk 01:30:06]} {[%emt 00:00:10]}
e6 {[%clk 01:30:31]} {[%emt 00:00:06]} 6. Be2 {[%clk 01:29:37]} {[%emt
00:00:59]} Nd7 {[%clk 01:20:45]} {[%emt 00:10:15]} 7. O-O {[%clk 01:28:03]}
{[%emt 00:02:05]} g6 {[%clk 01:20:10]} {[%emt 00:01:05]} 8. d3 {[%clk
01:25:30]} {[%emt 00:03:03]} Bg7 {[%clk 01:20:07]} {[%emt 00:00:33]} 9. Qg3
{[%clk 01:24:06]} {[%emt 00:01:55]} Qb6 {[%clk 01:17:04]} {[%emt 00:03:33]} 10.
a4 {[%clk 01:21:52]} {[%emt 00:02:44]} a5 {[%clk 00:57:20]} {[%emt 00:20:13]}
11. exd5 {[%clk 01:18:28]} {[%emt 00:03:54]} exd5 {[%clk 00:34:21]} {[%emt
00:23:29]} 12. Bg4 {[%clk 00:50:02]} {[%emt 00:28:57]} O-O-O {[%clk 00:28:52]}
{[%emt 00:05:58]} 13. Bg5 {[%clk 00:47:09]} {[%emt 00:03:24]} Re8 {[%clk
00:23:31]} {[%emt 00:05:50]} 14. Rae1 {[%clk 00:43:30]} {[%emt 00:04:09]} Nh6
{[%clk 00:22:30]} {[%emt 00:01:31]} 15. Bxh6 {[%clk 00:38:12]} {[%emt
00:05:49]} Bxh6 {[%clk 00:22:52]} {[%emt 00:00:07]} 16. Bxd7+ {[%clk 00:29:10]}
{[%emt 00:09:33]} Kxd7 {[%clk 00:23:12]} {[%emt 00:00:10]} 17. Qg4+ {[%clk
00:28:10]} {[%emt 00:01:30]} Re6 {[%clk 00:18:26]} {[%emt 00:05:15]} 18. Rxe6
{[%clk 00:22:04]} {[%emt 00:06:37]} fxe6 {[%clk 00:18:50]} {[%emt 00:00:06]} 19.
Ne2 {[%clk 00:18:01]} {[%emt 00:04:32]} Qb4 {[%clk 00:13:16]} {[%emt 00:06:03]}
20. Nd4 {[%clk 00:17:53]} {[%emt 00:00:39]} Re8 {[%clk 00:12:17]} {[%emt
00:01:30]} 21. c3 {[%clk 00:16:38]} {[%emt 00:01:45]} Qd6 {[%clk 00:10:10]}
{[%emt 00:02:36]} 22. g3 {[%clk 00:13:46]} {[%emt 00:03:22]} Bg7 {[%clk
00:10:11]} {[%emt 00:00:28]} 23. Nf3 {[%clk 00:12:32]} {[%emt 00:01:45]} Bf6
{[%clk 00:10:16]} {[%emt 00:00:25]} 24. Re1 {[%clk 00:11:50]} {[%emt 00:01:13]}
Re7 {[%clk 00:09:28]} {[%emt 00:01:17]} 25. d4 {[%clk 00:11:55]} {[%emt
00:00:26]} Kc7 {[%clk 00:08:49]} {[%emt 00:01:09]} 26. Ne5 {[%clk 00:10:12]}
{[%emt 00:02:13]} Bxe5 {[%clk 00:08:44]} {[%emt 00:00:35]} 27. Rxe5 {[%clk
00:10:36]} {[%emt 00:00:05]} b5 {[%clk 00:08:19]} {[%emt 00:00:54]} 28. axb5
{[%clk 00:10:41]} {[%emt 00:00:26]} cxb5 {[%clk 00:08:43]} {[%emt 00:00:05]} 29.
h4 {[%clk 00:10:39]} {[%emt 00:00:34]} Kb6 {[%clk 00:02:16]} {[%emt 00:06:57]}
30. h5 {[%clk 00:09:39]} {[%emt 00:01:30]} gxh5 {[%clk 00:02:41]} {[%emt
00:00:05]} 31. Qxh5 {[%clk 00:08:24]} {[%emt 00:01:44]} b4 {[%clk 00:02:46]}
{[%emt 00:00:25]} 32. Qf3 {[%clk 00:06:02]} {[%emt 00:02:52]} bxc3 {[%clk
00:02:12]} {[%emt 00:01:05]} 33. Qxc3 {[%clk 00:06:10]} {[%emt 00:00:22]} Qb4
{[%clk 00:02:37]} {[%emt 00:00:04]} 34. Qe3 {[%clk 00:05:10]} {[%emt 00:01:31]}
Kb5 {[%clk 00:02:30]} {[%emt 00:00:36]} 35. b3 {[%clk 00:04:48]} {[%emt
00:00:51]} Qd6 {[%clk 00:02:44]} {[%emt 00:00:16]} 36. f4 {[%clk 00:04:47]}
{[%emt 00:00:32]} Kb6 {[%clk 00:01:08]} {[%emt 00:02:06]} 37. f5 {[%clk
00:04:50]} {[%emt 00:00:28]} Kc6 {[%clk 00:00:49]} {[%emt 00:00:48]} 38. f6
{[%clk 00:04:55]} {[%emt 00:00:25]} 1-0

[Event "The Kvibergspelen 2023"]
[Site "Kviberg Park Hotel & Conference, Krutvagen 2, Gothenburg, Sweden"]
[Date "2023.09.17"]
[Round "7.17"]
[White "Ollen, Martin"]
[Black "Jarlskov, Daniel Tuk Hartso"]
[Result "1/2-1/2"]
[TimeControl "15 minutes + 5 seconds per move from move one (Round 1 - 4) / 90 minutes + 30 seconds per move from move one (Round 5 - 8)"]
[WhiteFideId "1718983"]
[BlackFideId "1463896"]
[WhiteElo "2143"]
[BlackElo "2038"]

1. e4 {[%clk 01:29:49]} {[%emt 00:01:10]} c6 {[%clk 01:30:51]} {[%emt
00:00:09]} 2. d4 {[%clk 01:30:09]} {[%emt 00:00:11]} d5 {[%clk 01:31:15]}
{[%emt 00:00:06]} 3. e5 {[%clk 01:30:34]} {[%emt 00:00:04]} c5 {[%clk
01:31:31]} {[%emt 00:00:15]} 4. c3 {[%clk 01:30:59]} {[%emt 00:00:05]} Nc6
{[%clk 01:31:55]} {[%emt 00:00:05]} 5. Be2 {[%clk 01:31:22]} {[%emt 00:00:08]}
cxd4 {[%clk 01:32:02]} {[%emt 00:00:23]} 6. cxd4 {[%clk 01:31:42]} {[%emt
00:00:10]} Bf5 {[%clk 01:32:20]} {[%emt 00:00:10]} 7. Nc3 {[%clk 01:30:40]}
{[%emt 00:01:33]} e6 {[%clk 01:31:59]} {[%emt 00:00:50]} 8. Nf3 {[%clk
01:30:41]} {[%emt 00:00:30]} h5 {[%clk 01:27:49]} {[%emt 00:04:40]} 9. O-O
{[%clk 01:30:48]} {[%emt 00:00:24]} h4 {[%clk 01:26:22]} {[%emt 00:01:56]} 10.
Qb3 {[%clk 01:19:27]} {[%emt 00:11:52]} Qd7 {[%clk 01:25:01]} {[%emt 00:01:49]}
11. Nb5 {[%clk 01:14:57]} {[%emt 00:05:01]} h3 {[%clk 01:16:47]} {[%emt
00:08:44]} 12. g3 {[%clk 01:15:13]} {[%emt 00:00:15]} Nh6 {[%clk 01:16:56]}
{[%emt 00:00:20]} 13. Bf4 {[%clk 01:10:20]} {[%emt 00:05:23]} Bg4 {[%clk
01:11:23]} {[%emt 00:06:02]} 14. Rfe1 {[%clk 01:10:05]} {[%emt 00:00:46]} Nf5
{[%clk 01:09:51]} {[%emt 00:02:01]} 15. Rad1 {[%clk 01:09:11]} {[%emt
00:01:25]} a6 {[%clk 01:01:35]} {[%emt 00:08:45]} 16. Nd6+ {[%clk 01:09:30]}
{[%emt 00:00:12]} Nxd6 {[%clk 01:01:57]} {[%emt 00:00:08]} 17. exd6 {[%clk
01:09:55]} {[%emt 00:00:06]} Bxd6 {[%clk 01:02:04]} {[%emt 00:00:22]} 18. Bxd6
{[%clk 00:55:37]} {[%emt 00:14:48]} Qxd6 {[%clk 01:01:00]} {[%emt 00:01:33]} 19.
Qxb7 {[%clk 00:55:55]} {[%emt 00:00:14]} O-O {[%clk 00:44:14]} {[%emt
00:17:16]} 20. Rc1 {[%clk 00:43:49]} {[%emt 00:12:36]} Na5 {[%clk 00:41:28]}
{[%emt 00:03:16]} 21. Qc7 {[%clk 00:44:00]} {[%emt 00:00:20]} Qxc7 {[%clk
00:41:29]} {[%emt 00:00:29]} 22. Rxc7 {[%clk 00:44:28]} {[%emt 00:00:02]} Nc4
{[%clk 00:38:10]} {[%emt 00:03:48]} 23. Ng5 {[%clk 00:33:18]} {[%emt 00:11:39]}
Bxe2 {[%clk 00:32:50]} {[%emt 00:05:51]} 24. Rxe2 {[%clk 00:33:42]} {[%emt
00:00:06]} Rab8 {[%clk 00:31:28]} {[%emt 00:01:52]} 25. b3 {[%clk 00:27:38]}
{[%emt 00:06:35]} Nd6 {[%clk 00:30:17]} {[%emt 00:01:40]} 26. Ra7 {[%clk
00:25:55]} {[%emt 00:02:13]} Nb5 {[%clk 00:18:25]} {[%emt 00:12:21]} 27. Rxa6
{[%clk 00:26:01]} {[%emt 00:00:25]} Nxd4 {[%clk 00:18:49]} {[%emt 00:00:06]} 28.
Rb2 {[%clk 00:26:11]} {[%emt 00:00:20]} e5 {[%clk 00:12:23]} {[%emt 00:06:56]}
29. Nxh3 {[%clk 00:26:18]} {[%emt 00:00:22]} Nf3+ {[%clk 00:12:48]} {[%emt
00:00:06]} 30. Kg2 {[%clk 00:25:56]} {[%emt 00:00:53]} e4 {[%clk 00:13:13]}
{[%emt 00:00:04]} 31. Ng1 {[%clk 00:19:03]} {[%emt 00:07:22]} Ne5 {[%clk
00:13:15]} {[%emt 00:00:29]} 32. Rd2 {[%clk 00:18:27]} {[%emt 00:01:05]} Rfd8
{[%clk 00:10:38]} {[%emt 00:03:08]} 33. Ra4 {[%clk 00:14:27]} {[%emt 00:04:31]}
f6 {[%clk 00:09:04]} {[%emt 00:02:03]} 34. Rad4 {[%clk 00:13:45]} {[%emt
00:01:11]} Ra8 {[%clk 00:08:12]} {[%emt 00:01:24]} 35. Kf1 {[%clk 00:11:02]}
{[%emt 00:03:12]} Nc6 {[%clk 00:06:34]} {[%emt 00:02:08]} 36. Rxd5 Rxd5 {[%clk
00:07:03]} 37. Rxd5 {[%clk 00:11:26]} {[%emt 00:00:07]} Rxa2 {[%clk 00:07:22]}
{[%emt 00:00:11]} 38. Ne2 {[%clk 00:10:40]} {[%emt 00:01:16]} Rb2 {[%clk
00:07:06]} {[%emt 00:00:47]} 39. Rb5 {[%clk 00:09:03]} {[%emt 00:02:06]} Rxe2
{[%clk 00:07:13]} {[%emt 00:00:22]} 40. Kxe2 {[%clk 00:09:06]} {[%emt
00:00:28]} Nd4+ {[%clk 00:07:39]} {[%emt 00:00:04]} 41. Ke3 {[%clk 00:09:30]}
{[%emt 00:00:05]} Nxb5 {[%clk 00:08:06]} {[%emt 00:00:04]} 42. Kxe4 {[%clk
00:09:52]} {[%emt 00:00:07]} Kf7 {[%clk 00:07:42]} {[%emt 00:00:54]} 43. h4
{[%clk 00:05:37]} {[%emt 00:04:44]} Ke6 {[%clk 00:05:52]} {[%emt 00:02:21]} 44.
g4 {[%clk 00:06:00]} {[%emt 00:00:07]} Nd6+ {[%clk 00:05:20]} {[%emt 00:01:02]}
45. Kf4 {[%clk 00:04:35]} {[%emt 00:01:55]} Nb5 {[%clk 00:04:06]} {[%emt
00:01:44]} 46. h5 {[%clk 00:03:45]} {[%emt 00:01:20]} Nc3 {[%clk 00:03:46]}
{[%emt 00:00:50]} 47. Ke3 {[%clk 00:01:49]} {[%emt 00:02:26]} Kd5 {[%clk
00:01:21]} {[%emt 00:02:55]} 48. f4 {[%clk 00:01:47]} {[%emt 00:00:32]} Ne4
{[%clk 00:00:56]} {[%emt 00:00:54]} 49. b4 {[%clk 00:01:55]} {[%emt 00:00:23]}
Nd6 {[%clk 00:00:57]} {[%emt 00:00:28]} 50. g5 {[%clk 00:01:33]} {[%emt
00:00:53]} fxg5 {[%clk 00:00:58]} {[%emt 00:00:29]} 51. fxg5 {[%clk 00:01:28]}
{[%emt 00:00:35]} Ke5 {[%clk 00:01:05]} {[%emt 00:00:23]} 52. h6 {[%clk
00:01:41]} {[%emt 00:00:17]} gxh6 {[%clk 00:01:29]} {[%emt 00:00:06]} 53. gxh6
{[%clk 00:02:07]} {[%emt 00:00:04]} Nf5+ {[%clk 00:01:44]} {[%emt 00:00:15]} 54.
Kd3 {[%clk 00:02:30]} {[%emt 00:00:07]} Nxh6 {[%clk 00:01:59]} {[%emt
00:00:15]} 55. Kc4 {[%clk 00:02:53]} 1/2-1/2

[Event "The Kvibergspelen 2023"]
[Site "Kviberg Park Hotel & Conference, Krutvagen 2, Gothenburg, Sweden"]
[Date "2023.09.17"]
[Round "7.18"]
[White "Mashhadi, Peyman"]
[Black "Fransson, Angelina"]
[Result "0-1"]
[TimeControl "15 minutes + 5 seconds per move from move one (Round 1 - 4) / 90 minutes + 30 seconds per move from move one (Round 5 - 8)"]
[WhiteFideId "1768581"]
[BlackFideId "1712632"]
[WhiteElo "2112"]
[BlackElo "1982"]

1. e4 {[%clk 01:30:08]} {[%emt 00:00:51]} c5 {[%clk 01:30:41]} {[%emt
00:00:19]} 2. Nf3 {[%clk 01:30:24]} {[%emt 00:00:13]} d6 {[%clk 01:31:07]}
{[%emt 00:00:05]} 3. d4 {[%clk 01:30:40]} {[%emt 00:00:14]} cxd4 {[%clk
01:31:31]} {[%emt 00:00:07]} 4. Nxd4 {[%clk 01:31:03]} {[%emt 00:00:05]} Nf6
{[%clk 01:31:58]} {[%emt 00:00:04]} 5. Nc3 {[%clk 01:31:17]} {[%emt 00:00:17]}
e6 {[%clk 01:32:19]} {[%emt 00:00:08]} 6. Be3 {[%clk 01:31:01]} {[%emt
00:00:45]} a6 {[%clk 01:32:41]} {[%emt 00:00:10]} 7. a4 {[%clk 01:30:08]}
{[%emt 00:01:23]} b6 {[%clk 01:31:29]} {[%emt 00:01:42]} 8. Be2 {[%clk
01:22:28]} {[%emt 00:08:08]} Bb7 {[%clk 01:31:32]} {[%emt 00:00:29]} 9. f4
{[%clk 01:18:31]} {[%emt 00:04:26]} Nxe4 {[%clk 01:26:19]} {[%emt 00:05:44]} 10.
Nxe4 {[%clk 01:18:47]} {[%emt 00:00:13]} Bxe4 {[%clk 01:26:45]} {[%emt
00:00:05]} 11. Bf3 {[%clk 01:18:53]} {[%emt 00:00:24]} Bxf3 {[%clk 01:26:34]}
{[%emt 00:00:42]} 12. Qxf3 {[%clk 01:19:03]} {[%emt 00:00:18]} d5 {[%clk
01:26:56]} {[%emt 00:00:08]} 13. Qg3 {[%clk 01:15:26]} {[%emt 00:04:06]} Qc7
{[%clk 01:23:49]} {[%emt 00:03:38]} 14. O-O {[%clk 01:14:11]} {[%emt 00:01:44]}
Nd7 {[%clk 01:18:07]} {[%emt 00:06:14]} 15. Rac1 {[%clk 01:06:33]} {[%emt
00:08:06]} Nf6 {[%clk 01:09:44]} {[%emt 00:08:54]} 16. c4 {[%clk 00:57:34]}
{[%emt 00:09:29]} dxc4 {[%emt 00:26:39]} 17. Kh1 {[%clk 00:40:38]} {[%emt
00:00:29]} Rc8 {[%clk 00:57:51]} {[%emt 00:03:12]} 18. b3 {[%clk 00:36:15]}
{[%emt 00:04:52]} c3 {[%clk 00:53:18]} {[%emt 00:05:03]} 19. Ne2 {[%clk
00:36:14]} {[%emt 00:00:31]} Ne4 {[%clk 00:51:45]} {[%emt 00:02:03]} 20. Qf3
{[%clk 00:35:59]} {[%emt 00:00:44]} Qc6 {[%clk 00:51:08]} {[%emt 00:01:08]} 21.
Nd4 {[%clk 00:29:55]} {[%emt 00:06:34]} Qa8 {[%clk 00:49:31]} {[%emt 00:02:07]}
22. f5 {[%clk 00:18:58]} {[%emt 00:11:26]} e5 {[%clk 00:28:46]} {[%emt
00:21:17]} 23. Ne6 {[%clk 00:19:13]} {[%emt 00:00:15]} c2 {[%clk 00:27:44]}
{[%emt 00:01:31]} 24. Bxb6 {[%clk 00:16:07]} {[%emt 00:03:36]} fxe6 {[%clk
00:23:30]} {[%emt 00:04:44]} 25. Qh5+ {[%clk 00:16:05]} {[%emt 00:00:31]} Ke7
{[%clk 00:22:47]} {[%emt 00:01:14]} 26. fxe6 {[%clk 00:15:37]} {[%emt
00:00:58]} Kxe6 {[%clk 00:21:25]} {[%emt 00:01:53]} 27. Qf7+ {[%clk 00:14:02]}
{[%emt 00:02:04]} Kd6 {[%clk 00:21:46]} {[%emt 00:00:09]} 28. Rfd1+ {[%clk
00:04:11]} {[%emt 00:10:21]} cxd1=Q+ {[%clk 00:21:43]} {[%emt 00:00:34]} 29.
Rxd1+ {[%clk 00:04:29]} {[%emt 00:00:11]} Kc6 {[%clk 00:21:36]} {[%emt
00:00:37]} 30. a5 {[%clk 00:03:17]} {[%emt 00:01:42]} Kb5 {[%clk 00:16:36]}
{[%emt 00:05:31]} 31. Qf1+ {[%clk 00:01:17]} {[%emt 00:02:30]} Kb4 {[%clk
00:15:42]} {[%emt 00:01:24]} 32. Qe1+ {[%clk 00:01:10]} {[%emt 00:00:37]} Nc3
{[%clk 00:15:14]} {[%emt 00:00:58]} 33. Ra1 {[%clk 00:00:36]} {[%emt 00:01:03]}
Bd6 {[%clk 00:13:14]} {[%emt 00:02:30]} 34. Qh4+ {[%clk 00:00:34]} {[%emt
00:00:32]} Kxb3 {[%clk 00:12:29]} {[%emt 00:01:15]} 35. Qg4 {[%clk 00:00:37]}
{[%emt 00:00:27]} Qe4 {[%clk 00:11:40]} {[%emt 00:01:19]} 36. Qd7 {[%clk
00:00:45]} {[%emt 00:00:22]} Bc5 {[%clk 00:09:33]} {[%emt 00:02:37]} 37. Rc1
{[%clk 00:00:37]} {[%emt 00:00:39]} Bxb6 {[%clk 00:09:00]} {[%emt 00:01:04]} 38.
axb6 {[%clk 00:00:44]} {[%emt 00:00:22]} Rhd8 {[%clk 00:09:14]} {[%emt
00:00:16]} 39. b7 {[%clk 00:00:47]} {[%emt 00:00:26]} Rb8 {[%clk 00:09:24]}
{[%emt 00:00:20]} 40. Qc7 {[%clk 00:01:02]} {[%emt 00:00:17]} Rd1+ {[%clk
00:08:29]} {[%emt 00:01:24]} 41. Rxd1 {[%clk 00:01:26]} {[%emt 00:00:06]} Nxd1
{[%clk 00:08:53]} {[%emt 00:00:06]} 42. Qb6+ {[%clk 00:01:18]} {[%emt
00:00:38]} Kc2 {[%clk 00:08:10]} {[%emt 00:01:12]} 43. Qc5+ {[%clk 00:01:33]}
{[%emt 00:00:15]} Nc3 {[%clk 00:08:24]} {[%emt 00:00:17]} 0-1